Cogmind - Beta 15 @@@ ROGUE MODE // 2025.05.31 @ 14:56:19 Player: Sunvar Result: Destroyed by X-77 Beamer with Gatling Laser Performance ------------- Evolutions (7) 3500 Regions Visited (15) 3000 Robots Destroyed (91) 455 Value Destroyed (3180) 3180 Prototype IDs (29) 580 Alien Tech Used (0) 0 Bonus (2539) 2539 TOTAL SCORE: 13254 Bonus ------- Triggered Max Security 1000 High Alert Combat Kills 104 Follower Combat Kills 135 Entered Garrisons 200 Entered DSFs 500 Aligned with FarCom 300 Acquired ECA 300 Cogmind --------- Core Integrity 0/1300 Matter 35/300 Energy 100/100 System Corruption 1% Temperature Cool (18) Movement Core (50) Location -3/Testing Parts ------- > --- POWER (2) -------- (None) > --- PROPULSION (6) --- (None) > --- UTILITY (11) ----- (None) > --- WEAPON (2) ------- (None) > --- INVENTORY (5) ---- Faulty Cooled Field Propulsion Drive Advanced Terrain Scanner PSU Rigger Cooled Nova Cannon Heavy Missile Launcher Peak State ------------ > --- POWER ------------ Light Fission Core > --- PROPULSION ------- Gravmag Array Improved Antigrav System Xenon Bombardment Thruster Xenon Bombardment Thruster Nuclear Pulse Thruster > --- UTILITY ---------- Enhanced Optical Array Advanced Signal Interpreter Improved Terrain Scan Processor Advanced Transmission Jammer ECM Suite Improved Light Armor Plating Hacking Suite Hacking Suite > --- WEAPON ----------- Power Sword > --- INVENTORY -------- Light Nuclear Core Advanced Terrain Scanner PSU Rigger Heavy Missile Launcher [Rating: 72] Favorites ----------- Power Light Nuclear Core Engine Ion Engine Power Core Light Nuclear Core Propulsion Light Treads Treads Light Treads Leg Aluminum Leg Wheel Compact Wheel Hover Unit Linear Gravjet Flight Unit Xenon Bombardment Thruster Utility Large Storage Unit Device Improved Heat Sink Storage Large Storage Unit Processor Targeting Computer Hackware Hacking Suite Protection Light Armor Plating Weapon Gatling Laser Energy Gun Gatling Laser Energy Cannon Beam Cannon Ballistic Gun Assault Rifle Launcher Grenade Launcher Impact Weapon Great Maul Slashing Weapon Katana Build | -11 -10 -10 -10 -9 -8 -8 -7 -7 -7 -6 -5 -5 -4 -3 -3 ------- Run | Yrd Mat Min Exi Min Mat Gar Fac Low Low Fac Fac DSF Fac Res Tes Slots Evolved 14 | . . . . . 4 . 2 . . 2 2 . 2 2 . Power 1 | . . . . . . . 1 . . . . . . . . Propulsion 4 | . . . . . 2 . 1 . . . 1 . . . . Utility 9 | . . . . . 2 . . . . 2 1 . 2 2 . Weapon . | . . . . . . . . . . . . . . . . Parts Attached 88 | 7 14 3 1 2 13 8 7 2 . 16 . . 4 3 8 Power 11 | 1 2 1 . . 1 2 2 . . 1 . . 1 . . Engine 4 | 1 2 1 . . . . . . . . . . . . . Core 7 | . . . . . 1 2 2 . . 1 . . 1 . . Reactor . | . . . . . . . . . . . . . . . . Propulsion 30 | 2 4 . . 1 5 . 3 1 . 5 . . 1 3 5 Treads 12 | . 2 . . 1 5 . 3 . . 1 . . . . . Leg 4 | 2 2 . . . . . . . . . . . . . . Wheel 1 | . . . . . . . . 1 . . . . . . . Hover 6 | . . . . . . . . . . 1 . . 1 3 1 Flight 7 | . . . . . . . . . . 3 . . . . 4 Utility 28 | 2 3 1 1 1 4 3 2 . . 8 . . 2 . 1 Device 7 | 1 . . . 1 1 1 . . . 1 . . 2 . . Storage 3 | 1 1 . 1 . . . . . . . . . . . . Processor 6 | . . . . . 1 1 . . . 4 . . . . . Hackware 3 | . . . . . . . . . . 2 . . . . 1 Protection 9 | . 2 1 . . 2 1 2 . . 1 . . . . . Artifact . | . . . . . . . . . . . . . . . . Weapon 19 | 2 5 1 . . 3 3 . 1 . 2 . . . . 2 Energy Gun 8 | 1 2 1 . . 3 1 . . . . . . . . . Energy Cannon 3 | . 1 . . . . . . . . . . . . . 2 Ballistic Gun 2 | 1 . . . . . . . . . 1 . . . . . Ballistic Cannon . | . . . . . . . . . . . . . . . . Launcher 3 | . 2 . . . . . . 1 . . . . . . . Special Weapon . | . . . . . . . . . . . . . . . . Impact Weapon 1 | . . . . . . 1 . . . . . . . . . Slashing Weapon 2 | . . . . . . 1 . . . 1 . . . . . Piercing Weapon . | . . . . . . . . . . . . . . . . Special Melee Weapon . | . . . . . . . . . . . . . . . . Unidentified Prototypes 6 | . . . . 1 1 . . . . . . . . . 4 Parts Lost 26 | . 3 2 . 1 1 2 . 1 . . . . 7 . 9 Power 4 | . 1 . . . 1 . . . . . . . 2 . . Propulsion 14 | . . . . 1 . 1 . 1 . . . . 4 . 7 Utility 5 | . 1 1 . . . . . . . . . . 1 . 2 Weapon 3 | . 1 1 . . . 1 . . . . . . . . . Highest Loss Streak 7 | . 2 2 . 1 1 1 . 1 . . . . 5 . 7 To Critical Strikes . | . . . . . . . . . . . . . . . . Average Backups 11 | 2 8 9 10 13 14 14 14 15 15 7 5 5 4 5 4 Power 1 | . 1 1 1 2 2 3 2 2 2 1 1 1 . . . Propulsion 1 | 1 2 2 2 2 1 1 . 1 1 . . . . . . Utility 3 | . 1 2 2 5 4 5 6 7 7 3 3 3 2 2 2 Weapon 3 | . 2 3 4 4 6 4 5 5 5 2 1 1 1 3 2 Tool/Special . | . . . . . . . . . . . . . . . . Unused Backups 18 | 1 3 . . . 1 3 . . . 9 . . . . 1 Power 6 | . 1 . . . 1 . . . . 4 . . . . . Propulsion 2 | . 1 . . . . 1 . . . . . . . . . Utility 4 | 1 . . . . . . . . . 2 . . . . 1 Weapon 6 | . 1 . . . . 2 . . . 3 . . . . . Tool/Special . | . . . . . . . . . . . . . . . . Average Slot Usage (%) 91 | . 95 100 100 91 96 100 98 97 100 71 76 76 63 30 36 Engine 5 | . 13 14 14 14 1 . . . . . . . . . . Core 5 | . . . . . 7 9 13 15 15 7 5 5 4 . . Treads 23 | . 7 28 28 27 34 36 38 34 30 6 . . . . . Leg 4 | . 20 . . . . . . . . . . . . . . Flight 1 | . . . . . . . . . . 11 17 17 13 4 3 Device 4 | . . . . . 9 9 7 7 7 5 . . 2 . . Storage 9 | . 14 14 14 14 9 9 7 7 7 1 . . . . . Processor 5 | . . . . . 7 9 7 7 7 10 17 17 15 14 12 Hackware 1 | . . . . . . . . . . 7 11 11 8 4 5 Protection 8 | . 10 14 14 6 9 8 7 7 7 5 5 5 3 . . Energy Gun 11 | . 13 10 14 14 17 13 8 14 15 3 . . . . . Ballistic Gun 4 | . 11 10 14 12 . . . . . . 5 5 2 . . Slashing Weapon 2 | . . . . . . 3 5 . . 6 5 5 3 . 2 Peak Build Rating 72 | 7 8 8 9 17 31 35 39 39 37 62 62 62 72 40 67 Average Rating 25 | 5 7 7 8 9 27 30 36 37 37 41 62 62 56 33 40 On Entrance 29 | . 7 8 8 9 10 31 31 39 37 37 62 62 62 22 40 Naked Turns 2 | . . . . . . . . . . . . . . . 2 Heaviest Build 47 | 15 23 24 30 31 42 42 46 46 46 47 18 18 18 . 3 Greatest Support 102 | 20 40 40 40 40 80 80 102 102 16 18 18 18 18 18 44 Greatest Overweight (x) 2 | . 1 . . . . . . 2 2 2 . 1 . . . Average Overweight (x) . | . . . . . . . . . 2 . . . . . . Largest Inventory Capacity 15 | 8 10 10 15 15 15 15 15 15 15 15 5 5 5 5 5 Average Capacity 11 | 7 8 10 10 15 15 15 15 15 15 7 5 5 5 5 5 Most Carried 15 | 4 10 10 10 15 15 15 15 15 15 15 5 5 5 5 5 Average Carried 11 | 2 8 9 9 13 14 14 14 15 15 7 5 5 4 5 4 Final Capacity 15 | 8 10 10 15 15 15 15 15 15 15 5 5 5 5 5 5 Final Carried 15 | 3 10 10 10 14 15 15 15 15 15 5 5 5 5 5 5 Class Distribution -------------------- 45% | Mutant 44% | Scavenger-Mutant 8% | Hacker-Mutant Dominant Class ---------------- Mutant | -10/Materials Mutant | -10/Mines Mutant | -10/Exiles Mutant | -9/Mines Scavenger-Mutant | -8/Materials Scavenger-Mutant | -8/Garrison Scavenger-Mutant | -7/Factory Scavenger-Mutant | -7/Lower Caves Scavenger-Mutant | -7/Lower Caves Hacker-Mutant | -6/Factory Hacker-Mutant | -5/Factory Hacker-Mutant | -5/DSF Hacker-Mutant | -4/Factory Mutant | -3/Research Mutant | -3/Testing Resources | -11 -10 -10 -10 -9 -8 -8 -7 -7 -7 -6 -5 -5 -4 -3 -3 ----------- Run | Yrd Mat Min Exi Min Mat Gar Fac Low Low Fac Fac DSF Fac Res Tes Matter Collected 1549 | 186 418 188 . 61 148 185 110 147 . 100 . . . . 6 Remotely . | . . . . . . . . . . . . . . . . Salvage Created 2834 | 201 578 148 . 125 426 872 330 140 . . . . . . 14 Parts 157 | 22 43 13 . 7 22 33 14 1 . . . . . . 2 Haulers Intercepted 4 | . 2 . . . 2 . . . . . . . . . . Recyclers Shooed 2 | . . . . . 2 . . . . . . . . . . Parts Field Recycled . | . . . . . . . . . . . . . . . . Retrieved Matter . | . . . . . . . . . . . . . . . . Parts Self-Destructed 3 | . . . . . . . . 3 . . . . . . . Prevented . | . . . . . . . . . . . . . . . . Kills | -11 -10 -10 -10 -9 -8 -8 -7 -7 -7 -6 -5 -5 -4 -3 -3 ------- Run | Yrd Mat Min Exi Min Mat Gar Fac Low Low Fac Fac DSF Fac Res Tes Combat Hostiles Destroyed 62 | . 13 7 . 3 4 23 6 5 . . . . . . 1 Melee 1 | . . . . . . . . . . . . . . . 1 Guns 45 | . 7 2 . 1 4 21 6 4 . . . . . . . Cannons 2 | . . 2 . . . . . . . . . . . . . AOE 12 | . 6 3 . 2 . . . 1 . . . . . . . Classes Destroyed 16 | 2 7 1 . . 2 3 . . . . . . . . 1 Worker 6 | . 1 1 . 1 1 . 2 . . . . . . . . Builder 3 | . 2 . . . . . 1 . . . . . . . . Tunneler 7 | 5 2 . . . . . . . . . . . . . . Hauler 4 | . 2 . . . 2 . . . . . . . . . . Recycler 3 | 1 . . . . 1 . 1 . . . . . . . . Operator 2 | . 2 . . . . . . . . . . . . . . Watcher 4 | . 3 . . . 1 . . . . . . . . . . Swarmer 14 | . 6 3 . . . 2 2 1 . . . . . . . Saboteur 1 | . . . . . . . . . . . . . . . 1 Grunt 24 | . 7 3 . 3 . 7 2 2 . . . . . . . Duelist 5 | . . . . . . 5 . . . . . . . . . Sentry 7 | . . . . . 3 2 1 1 . . . . . . . Demolisher 1 | . . 1 . . . . . . . . . . . . . Specialist 2 | . . . . . . 2 . . . . . . . . . Hunter 4 | . . . . . 1 2 . 1 . . . . . . . Programmer 4 | . . . . . . 3 1 . . . . . . . . Best Kill Streak 8 | 5 8 5 . 3 2 6 3 3 . . . . . . 1 Combat Bots Only 6 | . 5 4 . 2 1 6 2 3 . . . . . . 1 Max Kills in Single Turn 3 | 2 3 3 . 3 1 2 1 1 . . . . . . 1 Gunslinging . | . . . . . . . . . . . . . . . . Exploded 3 | . 3 2 . 2 . . . 1 . . . . . . . Melee 1 | . . . . . . . . . . . . . . . 1 Uniques/NPCs Destroyed . | . . . . . . . . . . . . . . . . Combat | -11 -10 -10 -10 -9 -8 -8 -7 -7 -7 -6 -5 -5 -4 -3 -3 -------- Run | Yrd Mat Min Exi Min Mat Gar Fac Low Low Fac Fac DSF Fac Res Tes Hostile Shots Fired 564 | . 52 30 . 12 10 120 43 55 . . . . 41 . 201 Missed 230 | . 13 5 . 2 3 35 18 29 . . . . 24 . 101 Hits 334 | . 39 25 . 10 7 85 25 26 . . . . 17 . 100 Melee 5 | . . . . . . 3 . . . . . . . . 2 Projectile 329 | . 39 25 . 10 7 82 25 26 . . . . 17 . 98 AOE 13 | . . 6 . . . . . . . . . . 6 . 1 Critical Strikes 12 | . 1 1 . . . 5 . . . . . . 2 . 3 Part Disruptions 1 | . . . . . . 1 . . . . . . . . . Damage Taken 5735 | 30 504 475 . 118 96 1170 331 315 . . . . 814 . 1882 Core 1836 | 15 107 48 . 13 15 80 6 40 . . . . 207 . 1305 Absorbed by Shields 65 | . . . . . . 65 . . . . . . . . . Core Remaining (%) 82 | 94 . . . 26 . 82 . . 93 100 . 100 82 . . Volleys Fired 179 | 8 61 20 . 8 18 40 14 10 . . . . . . . Largest 2 | 2 2 2 . 2 2 2 2 2 . . . . . . . Hottest 160 | 60 80 90 . 80 160 160 160 160 . . . . . . . Shots Fired 344 | 16 114 36 . 16 36 79 27 20 . . . . . . . Gun 319 | 16 109 20 . 15 36 79 27 17 . . . . . . . Cannon 14 | . 1 13 . . . . . . . . . . . . . Launcher 11 | . 4 3 . 1 . . . 3 . . . . . . . Special . | . . . . . . . . . . . . . . . . Kinetic 86 | 8 56 15 . 7 . . . . . . . . . . . Thermal 237 | . 52 18 . 8 36 79 27 17 . . . . . . . Explosive 11 | . 4 3 . 1 . . . 3 . . . . . . . Electromagnetic 10 | 8 2 . . . . . . . . . . . . . . Robot Hit Streak 22 | 3 11 6 . 5 10 22 21 12 . . . . . . . Robot Miss Streak 10 | 2 10 2 . 2 4 2 3 3 . . . . . . . Penetration Max . | . . . . . . . . . . . . . . . . Secondary Targets 9 | . 1 . . . 1 7 . . . . . . . . . Max Gunslinging Chain 1 | . 1 . . . 1 1 . . . . . . . . . Shots Hit Robots 248 | 8 60 23 . 9 29 73 27 14 . . . . . . 5 Core Hits 181 | 5 35 13 . 8 23 61 23 11 . . . . . . 2 Critical Kills 1 | 1 . . . . . . . . . . . . . . . Critical Parts Destroyed 1 | . 1 . . . . . . . . . . . . . . Critical Strikes 5 | 1 3 . . . . . . . . . . . . . 1 Burn 2 | . 2 . . . . . . . . . . . . . . Destroy 2 | 1 1 . . . . . . . . . . . . . . Sever 1 | . . . . . . . . . . . . . . . 1 Melee Attacks 71 | . . . . . . 28 13 . . 5 . . 10 . 15 Impact 1 | . . . . . . 1 . . . . . . . . . Slashing 70 | . . . . . . 27 13 . . 5 . . 10 . 15 Piercing . | . . . . . . . . . . . . . . . . Sneak Attacks 2 | . . . . . . . 2 . . . . . . . . Combat Hostiles . | . . . . . . . . . . . . . . . . Follow-up Attacks . | . . . . . . . . . . . . . . . . Damage Inflicted 6145 | 160 1304 568 . 215 555 1974 758 398 . . . . 7 . 206 Guns 4608 | 116 762 182 . 112 553 1974 631 278 . . . . . . . Cannons 177 | . 18 159 . . . . . . . . . . . . . Explosions 1018 | 44 524 227 . 103 . . . 120 . . . . . . . Melee 333 | . . . . . . . 127 . . . . . . . 206 Ramming 9 | . . . . . 2 . . . . . . . 7 . . Kinetic 639 | 62 396 131 . 50 . . . . . . . . . . . Thermal 4320 | 44 568 210 . 62 553 1974 631 278 . . . . . . . Explosive 760 | . 310 227 . 103 . . . 120 . . . . . . . Electromagnetic 84 | 54 30 . . . . . . . . . . . . . . Impact . | . . . . . . . . . . . . . . . . Slashing 333 | . . . . . . . 127 . . . . . . . 206 Piercing . | . . . . . . . . . . . . . . . . Highest Corruption 2 | . . . . . . 2 . . . . . . 1 . 1 Average Corruption 1 | . . . . . . 2 . . . . . . 1 . 1 Corruption Purged . | . . . . . . . . . . . . . . . . Corruption Blocked . | . . . . . . . . . . . . . . . . Effects 3 | . . . . . . 3 . . . . . . . . . Message Errors 1 | . . . . . . 1 . . . . . . . . . Matter Fused 1 | . . . . . . 1 . . . . . . . . . Energy Discharges 1 | . . . . . . 1 . . . . . . . . . Overload Shots . | . . . . . . . . . . . . . . . . Overflow Damage 164 | 14 148 . . . . . . . . . . . . . 2 Projectiles . | . . . . . . . . . . . . . . . . Explosions 162 | 14 148 . . . . . . . . . . . . . . Melee 2 | . . . . . . . . . . . . . . . 2 Knockbacks . | . . . . . . . . . . . . . . . . Impact . | . . . . . . . . . . . . . . . . Kinetic . | . . . . . . . . . . . . . . . . Secondary . | . . . . . . . . . . . . . . . . Self-Inflicted Damage 244 | 31 88 . . . . . 77 45 . . . . 3 . . Shots 5 | 1 2 . . . . . 1 1 . . . . . . . Rammed 3 | . . . . . 1 . . . . . . . 2 . . Targets Rammed 3 | . . . . . 1 . . . . . . . 2 . . Kicked . | . . . . . . . . . . . . . . . . Crushed . | . . . . . . . . . . . . . . . . Highest Temperature 408 | 20 144 224 . 195 136 398 175 189 . . . . . . 408 Average Temperature 81 | 16 37 84 . 95 47 140 73 63 . . . . . . 175 Received Heat Transfer 1332 | . 204 165 . 69 9 320 54 60 . . . . 45 . 406 Effects 4 | . . . . . . 2 . . . . . . . . 2 Interference 4 | . . . . . . 2 . . . . . . . . 2 Siege Activations . | . . . . . . . . . . . . . . . . Martial Activations . | . . . . . . . . . . . . . . . . Shielding Activations . | . . . . . . . . . . . . . . . . Robots Disrupted . | . . . . . . . . . . . . . . . . Combat Hostiles . | . . . . . . . . . . . . . . . . Robots Corrupted . | . . . . . . . . . . . . . . . . Combat Hostiles . | . . . . . . . . . . . . . . . . Parts Fried . | . . . . . . . . . . . . . . . . Impact Corruptions . | . . . . . . . . . . . . . . . . Robots Melted 2 | . . . . . . 2 . . . . . . . . . Combat Hostiles 2 | . . . . . . 2 . . . . . . . . . Parts Melted 19 | . 1 . . 2 3 11 2 . . . . . . . . Heat Transferred 9553 | 50 1384 481 . 185 1274 4154 1400 625 . . . . . . . Parts Sabotaged 5 | . . . . . . . . . . . . . . . 5 Parts Stolen . | . . . . . . . . . . . . . . . . Parts Stripped . | . . . . . . . . . . . . . . . . Power Chain Reactions 1 | 1 . . . . . . . . . . . . . . . Alert | -11 -10 -10 -10 -9 -8 -8 -7 -7 -7 -6 -5 -5 -4 -3 -3 ------- Run | Yrd Mat Min Exi Min Mat Gar Fac Low Low Fac Fac DSF Fac Res Tes Maximum Alert Level 5 | . 1 . . . . 3 1 . . . . . . . 5 Low Security (%) 54 | 100 43 100 . 100 100 32 . . . 100 100 100 100 100 . Level 1 29 | . 56 . . . . 9 100 . . . . . . . . Level 2 11 | . . . . . . 56 . . . . . . . . . Level 3 . | . . . . . . 1 . . . . . . . . . Level 4 . | . . . . . . . . . . . . . . . . Level 5 . | . . . . . . . . . . . . . . . . High Security . | . . . . . . . . . . . . . . . . Max Security 4 | . . . . . . . . . . . . . . . 99 Peak Influence 2235 | 5 358 135 . 64 57 713 373 . . 21 . 17 21 15 2235 Initial 373 | . . 36 . . 16 . 373 . . 21 . 2 8 2 2 Average 247 | 1 212 63 . 7 9 367 272 . . 2 . 7 1 4 1803 Influence Increases 3201 | 30 649 279 . 93 151 733 301 140 . 37 3 15 50 15 705 Destroy 0b10 Robot/C 1340 | . 260 200 . 60 80 460 160 100 . . . . . . 20 Destroy 0b10 Robot/NC 145 | 30 60 5 . 5 25 . 20 . . . . . . . . Destroy Leader 246 | . 80 40 . 10 46 20 40 10 . . . . . . . Allied During Kill 18 | . . 16 . . . . 2 . . . . . . . . Successful Hack 30 | . . . . 9 . . . . . 18 3 . . . . Select Force Hacks 60 | . 60 . . . . . . . . . . . . . . Disable Machine 270 | . 135 . . . . 15 30 . . 15 . . . . 75 Anti-Garrison Action 200 | . . . . . . 200 . . . . . . . . . Destroy Structure 202 | . 54 18 . 9 . 38 49 . . 4 . . 20 . 10 Partial Spotted 30 | . . . . . . . . . . . . . 15 15 . Lose Combat Pursuer 660 | . . . . . . . . 30 . . . 15 15 . 600 Influence Decreases 2584 | 30 555 368 5 49 195 20 764 333 22 70 2 1 62 15 93 Entered New Map 568 | . . 58 5 . 28 . 340 93 12 14 2 1 9 3 3 Time Decay 1735 | 30 525 230 . 49 167 . 404 230 10 56 . . 22 12 . Lost Part 201 | . 30 20 . . . 20 . 10 . . . . 31 . 90 Lost Ally 80 | . . 60 . . . . 20 . . . . . . . . Squads Dispatched 25 | . 5 . . . 1 . 5 . . 1 . . 1 . 12 Investigation 3 | . 2 . . . . . 1 . . . . . . . . Extermination 5 | . . . . . . . 3 . . 1 . . 1 . . Reinforcement 4 | . 3 . . . . . 1 . . . . . . . . Assault 12 | . . . . . . . . . . . . . . . 12 Garrison 1 | . . . . . 1 . . . . . . . . . . Intercept . | . . . . . . . . . . . . . . . . Searches Triggered . | . . . . . . . . . . . . . . . . Construction Impeded . | . . . . . . . . . . . . . . . . Haulers Reinforced . | . . . . . . . . . . . . . . . . Active Scanning Responses . | . . . . . . . . . . . . . . . . Cargo Convoy Interrupts . | . . . . . . . . . . . . . . . . Stealth | -11 -10 -10 -10 -9 -8 -8 -7 -7 -7 -6 -5 -5 -4 -3 -3 --------- Run | Yrd Mat Min Exi Min Mat Gar Fac Low Low Fac Fac DSF Fac Res Tes Distress Signals 7 | . 2 . . . 2 . . . . . . . . . 3 Communications Jammed . | . . . . . . . . . . . . . . . . Distress Signals . | . . . . . . . . . . . . . . . . Times Spotted 173 | . 29 10 . 2 11 22 7 7 . . . 1 11 . 73 Peak Tracking Total 29 | . 4 5 . 2 4 6 2 3 . . . 1 5 . 29 Tactical Retreats 14 | . . . . . . . . 2 . . . 1 2 . 9 Traps | -11 -10 -10 -10 -9 -8 -8 -7 -7 -7 -6 -5 -5 -4 -3 -3 ------- Run | Yrd Mat Min Exi Min Mat Gar Fac Low Low Fac Fac DSF Fac Res Tes Traps Triggered 7 | . . . . . . 3 2 . . 1 . 1 . . . Indirectly . | . . . . . . . . . . . . . . . . Trap Hack Attempts . | . . . . . . . . . . . . . . . . Triggered . | . . . . . . . . . . . . . . . . Disarmed . | . . . . . . . . . . . . . . . . Reprogrammed . | . . . . . . . . . . . . . . . . Reused . | . . . . . . . . . . . . . . . . Traps Extracted . | . . . . . . . . . . . . . . . . Installed . | . . . . . . . . . . . . . . . . Triggered . | . . . . . . . . . . . . . . . . Objects Rigged 4 | . . . . . . 1 . . . 2 . . 1 . . Exploded 2 | . . . . . . 1 . . . . . . 1 . . Machines | -11 -10 -10 -10 -9 -8 -8 -7 -7 -7 -6 -5 -5 -4 -3 -3 ---------- Run | Yrd Mat Min Exi Min Mat Gar Fac Low Low Fac Fac DSF Fac Res Tes Machines Disabled 20 | . 9 . . . . 3 2 . . 1 . . . . 5 Max in Single Turn 9 | . 9 . . . . 1 2 . . 1 . . . . 1 Garrison Relay 2 | . . . . . . 2 . . . . . . . . . Machines Repaired . | . . . . . . . . . . . . . . . . Machines Dismantled . | . . . . . . . . . . . . . . . . Machines Sabotaged . | . . . . . . . . . . . . . . . . Overloaded Fab Kills . | . . . . . . . . . . . . . . . . Hacking | -11 -10 -10 -10 -9 -8 -8 -7 -7 -7 -6 -5 -5 -4 -3 -3 --------- Run | Yrd Mat Min Exi Min Mat Gar Fac Low Low Fac Fac DSF Fac Res Tes Machines Accessed 20 | . 6 . 2 1 3 . 2 . . 4 1 . 1 . . Terminals 15 | . 4 . . 1 2 . 2 . . 4 1 . 1 . . Fabricators . | . . . . . . . . . . . . . . . . Repair Stations . | . . . . . . . . . . . . . . . . Recycling Units 2 | . 2 . . . . . . . . . . . . . . Scanalyzers . | . . . . . . . . . . . . . . . . Garrison Access 1 | . . . . . 1 . . . . . . . . . . Total Hacks 36 | . 10 . 2 1 4 . 4 . . 12 1 . 2 . . Successful 15 | . 4 . 2 1 2 . . . . 5 1 . . . . Failed 21 | . 6 . . . 2 . 4 . . 7 . . 2 . . Catastrophic 5 | . 1 . . . . . 2 . . 1 . . 1 . . Database Lockouts . | . . . . . . . . . . . . . . . . Manual 28 | . 10 . 1 1 2 . 1 . . 11 . . 2 . . Terminals 31 | . 8 . . 1 3 . 4 . . 12 1 . 2 . . Fabricators . | . . . . . . . . . . . . . . . . Repair Stations . | . . . . . . . . . . . . . . . . Recycling Units 2 | . 2 . . . . . . . . . . . . . . Scanalyzers . | . . . . . . . . . . . . . . . . Garrison Access 1 | . . . . . 1 . . . . . . . . . . Terminal Hacks 8 | . . . 2 1 1 . . . . 3 1 . . . . Record 1 | . . . 1 . . . . . . . . . . . . Open DSF 1 | . . . . . . . . . . . 1 . . . . Level Access Points 2 | . . . . 1 . . . . . 1 . . . . . Unreport Threat 1 | . . . . . . . . . . 1 . . . . . Locate Traps 1 | . . . . . . . . . . 1 . . . . . Hauler Manifests 1 | . . . . . 1 . . . . . . . . . . Proto ID Catalog 1 | . . . 1 . . . . . . . . . . . . Fabricator Hacks . | . . . . . . . . . . . . . . . . Repair Station Hacks . | . . . . . . . . . . . . . . . . Recycling Unit Hacks . | . . . . . . . . . . . . . . . . Scanalyzer . | . . . . . . . . . . . . . . . . Garrison Access Hacks 1 | . . . . . 1 . . . . . . . . . . Unlock Access 1 | . . . . . 1 . . . . . . . . . . Unauthorized Hacks 6 | . 4 . . . . . . . . 2 . . . . . Terminals 4 | . 2 . . . . . . . . 2 . . . . . Botnet 2 | . 1 . . . . . . . . 1 . . . . . Operators 1 | . . . . . . . . . . 1 . . . . . Skim 1 | . 1 . . . . . . . . . . . . . . Fabricators . | . . . . . . . . . . . . . . . . Repair Stations . | . . . . . . . . . . . . . . . . Recycling Units 2 | . 2 . . . . . . . . . . . . . . Tunnel 2 | . 2 . . . . . . . . . . . . . . Scanalyzers . | . . . . . . . . . . . . . . . . Garrison Access . | . . . . . . . . . . . . . . . . Data Cores Recovered . | . . . . . . . . . . . . . . . . Used . | . . . . . . . . . . . . . . . . Hacking Detections 14 | . 3 . . 1 2 . 2 . . 4 1 . 1 . . Full Trace Events 1 | . . . . . . . 1 . . . . . . . . Feedback Events . | . . . . . . . . . . . . . . . . Feedback Blocked . | . . . . . . . . . . . . . . . . Robot Schematics Acquired . | . . . . . . . . . . . . . . . . Robots Built . | . . . . . . . . . . . . . . . . Authchips . | . . . . . . . . . . . . . . . . Time . | . . . . . . . . . . . . . . . . Total Robot Build Rating . | . . . . . . . . . . . . . . . . Part Schematics Acquired . | . . . . . . . . . . . . . . . . Parts Built . | . . . . . . . . . . . . . . . . Authchips . | . . . . . . . . . . . . . . . . Time . | . . . . . . . . . . . . . . . . Total Part Build Rating . | . . . . . . . . . . . . . . . . Parts Repaired . | . . . . . . . . . . . . . . . . Time . | . . . . . . . . . . . . . . . . Parts Recycled . | . . . . . . . . . . . . . . . . Recycled Matter . | . . . . . . . . . . . . . . . . Retrieved Matter . | . . . . . . . . . . . . . . . . Retrieved Components . | . . . . . . . . . . . . . . . . Parts Scanalyzed . | . . . . . . . . . . . . . . . . Part Schematics Acquired . | . . . . . . . . . . . . . . . . Parts Damaged . | . . . . . . . . . . . . . . . . Bothacking | -11 -10 -10 -10 -9 -8 -8 -7 -7 -7 -6 -5 -5 -4 -3 -3 ------------ Run | Yrd Mat Min Exi Min Mat Gar Fac Low Low Fac Fac DSF Fac Res Tes Used RIF Installer . | . . . . . . . . . . . . . . . . Robots Hacked . | . . . . . . . . . . . . . . . . Non-combat . | . . . . . . . . . . . . . . . . Combat . | . . . . . . . . . . . . . . . . Robot Hacks Applied . | . . . . . . . . . . . . . . . . Relay Couplers Released 8 | . . . . . . 8 . . . . . . . . . Machine Destruction 8 | . . . . . . 8 . . . . . . . . . Fabnet Peak Effective % . | . . . . . . . . . . . . . . . . Robots Rewired 1 | . . . . . . . 1 . . . . . . . . Allies Hacked . | . . . . . . . . . . . . . . . . Hacks Repelled . | . . . . . . . . . . . . . . . . Allies | -11 -10 -10 -10 -9 -8 -8 -7 -7 -7 -6 -5 -5 -4 -3 -3 -------- Run | Yrd Mat Min Exi Min Mat Gar Fac Low Low Fac Fac DSF Fac Res Tes Total Allies 4 | . . 3 . . . . 1 . . . . . . . . Largest Group 3 | . . 3 . . . . 1 . . . . . . . . Highest-Rated Group 40 | . . 40 . . . . 34 . . . . . . . . Highest-Rated Ally 34 | . . 16 . . . . 34 . . . . . . . . Initial Warlord ECA Mod 29 | . . . . . . . 5 5 5 4 3 3 2 1 1 Total Orders 1 | . . . . . . . 1 . . . . . . . . STAY 1 | . . . . . . . 1 . . . . . . . . Ally Attacks 20 | . . 19 . . . . 1 . . . . . . . . Total Damage 481 | . . 241 . . . . 240 . . . . . . . . Kills 5 | . . 3 . . . . 2 . . . . . . . . Allies Corrupted . | . . . . . . . . . . . . . . . . Allies Melted . | . . . . . . . . . . . . . . . . Intel | -11 -10 -10 -10 -9 -8 -8 -7 -7 -7 -6 -5 -5 -4 -3 -3 ------- Run | Yrd Mat Min Exi Min Mat Gar Fac Low Low Fac Fac DSF Fac Res Tes Active Infowar (turns) 838 | 75 57 . . 1 1 . . . . 25 22 63 291 53 250 Optics 704 | . . . . . . . . . . 25 22 63 291 53 250 Sensors 2 | . . . . 1 1 . . . . . . . . . . Seismic 132 | 75 57 . . . . . . . . . . . . . . Jamming 3 | . . . . . . . . . . . . . 3 . . ECM 105 | . . . . . . . . . . . . . 105 . . Robot Analysis Total . | . . . . . . . . . . . . . . . . Derelict Logs Recovered 2 | . . 1 . 1 . . . . . . . . . . . Drone Launches . | . . . . . . . . . . . . . . . . Drone Recoveries . | . . . . . . . . . . . . . . . . Exploration | -11 -10 -10 -10 -9 -8 -8 -7 -7 -7 -6 -5 -5 -4 -3 -3 ------------- Run | Yrd Mat Min Exi Min Mat Gar Fac Low Low Fac Fac DSF Fac Res Tes Turns Passed 7616 | 140 1525 480 365 368 714 1353 968 493 24 459 22 63 291 53 298 Spaces Moved 5726 | 88 938 253 227 192 374 647 480 286 19 876 64 83 550 91 558 Core 83 | 6 . . . . . . . . . . . . . . 77 Treads 2642 | . 234 253 227 192 374 647 480 235 . . . . . . . Legs 786 | 82 704 . . . . . . . . . . . . . . Wheels 156 | . . . . . . . . 51 19 86 . . . . . Hover 29 | . . . . . . . . . . . . . . 2 27 Flight 2030 | . . . . . . . . . . 790 64 83 550 89 454 Fastest Speed 34 | 50 120 160 160 160 160 165 161 130 130 34 34 34 34 36 34 Average Speed 110 | 115 136 160 160 160 163 165 162 154 130 44 34 54 35 39 40 Slowest Speed 190 | 120 190 160 160 160 165 166 164 161 130 130 34 117 40 40 60 Overloaded Moves . | . . . . . . . . . . . . . . . . Propulsion Burnouts . | . . . . . . . . . . . . . . . . Robots Hopped 13 | . . . . . . . . . . . . . 13 . . Potential Cave-ins . | . . . . . . . . . . . . . . . . Cave-ins Triggered . | . . . . . . . . . . . . . . . . Exploration Rate (%) 39 | 5 100 63 61 41 24 63 11 56 4 20 3 81 21 3 72 Regions Visited 15 Branch Regions 6 Pre-discovered Areas 5 | . 2 1 1 . . . . 1 . . . . . . . Known Exits Taken 6 | . . . . 1 1 . . . . 1 1 . 1 1 . Unknown Exits Taken 7 | 1 1 1 1 . . . 1 1 1 . . . . . . Scrap Searched 1 | . . 1 . . . . . . . . . . . . . Spaces Dug 42 | . . . . 9 . 3 11 . . 4 . . 10 . 5 Terrain Destroyed 209 | 2 53 24 . 9 . 3 55 44 . 4 . . 10 . 5 Melee 33 | . . . . . . 3 11 . . 4 . . 10 . 5 Projectile . | . . . . . . . . . . . . . . . . AOE 176 | 2 53 24 . 9 . . 44 44 . . . . . . . Terrain Rammed . | . . . . . . . . . . . . . . . . Walls Destroyed . | . . . . . . . . . . . . . . . . Machines Disabled . | . . . . . . . . . . . . . . . . Actions | -11 -10 -10 -10 -9 -8 -8 -7 -7 -7 -6 -5 -5 -4 -3 -3 --------- Run | Yrd Mat Min Exi Min Mat Gar Fac Low Low Fac Fac DSF Fac Res Tes Total 6528 | 107 1067 290 230 236 437 792 615 311 18 930 63 100 619 105 608 Wait 279 | . 25 11 . 27 5 40 71 13 . 5 . . 54 12 16 Move 5687 | 87 937 252 226 191 374 646 479 285 18 875 63 82 524 90 558 Hop 13 | . . . . . . . . . . . . . 13 . . Pick Up 57 | 4 14 1 1 5 9 8 4 . . 10 . . 1 . . Fast Attach 51 | 7 4 . . . 6 . 3 1 . 16 . . 2 3 9 Attach 27 | . 2 2 . 2 3 3 3 . . 4 . . 5 . 3 Detach 14 | . 1 . . 1 3 . . . . 1 . . 4 . 4 Swap 56 | . 12 4 1 2 5 17 11 2 . 2 . . . . . Drop 59 | 1 11 . 2 . 13 9 6 . . 10 . . 4 . 3 Fire 179 | 8 61 20 . 8 18 40 14 10 . . . . . . . Melee 71 | . . . . . . 28 13 . . 5 . . 10 . 15 Ram 1 | . . . . . . . . . . . . . 1 . . Kick . | . . . . . . . . . . . . . . . . Crush 1 | . . . . . 1 . . . . . . . . . . Escape Stasis 18 | . . . . . . . . . . . . 18 . . . Rewire 11 | . . . . . . . 11 . . . . . . . . Trap 4 | . . . . . . 1 . . . 2 . . 1 . . Miscellaneous . | . . . . . . . . . . . . . . . . Route ------- -11/Scrapyard -10/Materials (discovered 5 exits: [*Mat x3] / [*Min] / [*Sub]) -10/Mines (discovered 3 exits: [*Mat x2] / *Exi) -10/Exiles -9/Mines (discovered 2 exits: *Mat x2) -8/Materials -8/Garrison (discovered 2 exits: *Fac x2) -7/Factory -7/Lower Caves -7/Lower Caves -6/Factory (discovered 5 exits: *Fac x4 / *Low) -5/Factory -5/DSF -4/Factory -3/Research -3/Testing (discovered 1 exit: [*Res]) History --------- Turn | Location | Event 4 | -11/Scrapyard | Discovered new exit (range 15) 141 | -11/Scrapyard | Entered Materials 302 | -10/Materials | Build established: Mutant 355 | -10/Materials | Discovered new exit (range 5) 494 | -10/Materials | Discovered new exit (range 13) 797 | -10/Materials | Discovered new exit (range 10) 884 | -10/Materials | Discovered new exit (range 3) 1499 | -10/Materials | Discovered new exit (range 9) 1666 | -10/Materials | Entered Mines 1673 | -10/Mines | Assisted by bots powering up and referring to "LRC-V3" 1775 | -10/Mines | Assembled infested the area 1799 | -10/Mines | Learned location of Storage (-7) 1825 | -10/Mines | Core integrity fell below 50% 1845 | -10/Mines | Lost 3 allies 1871 | -10/Mines | Discovered new exit (range 12) 1950 | -10/Mines | Discovered new exit (range 4) 2139 | -10/Mines | Discovered new exit (range 5) 2146 | -10/Mines | Entered Exiles 2185 | -10/Exiles | Met 8R-AWN 2212 | -10/Exiles | Met EX-HEX 2255 | -10/Exiles | Met EX-BIN 2274 | -10/Exiles | Aligned with FarCom system 2276 | -10/Exiles | Given EX-Vault access code 2313 | -10/Exiles | Opened EX-Vault 2326 | -10/Exiles | Found PSU Rigger 2358 | -10/Exiles | Warned to stay clear of 0b10 Research branches 2410 | -10/Exiles | Met EX-DEC 2420 | -10/Exiles | Learned location of Zion (-6) 2498 | -10/Exiles | Discovered new exit (range 10) 2511 | -10/Exiles | Left Exiles lab with PSU Rigger 2511 | -10/Exiles | Entered Mines 2582 | -9/Mines | Found a Scrap Suit stashed away for nefarious purposes 2621 | -9/Mines | Found a damaged Exp. Sensor Array with a note attached 2624 | -9/Mines | Found Prototype Device 2625 | -9/Mines | Identified Exp. Sensor Array 2742 | -9/Mines | Identified exit to Materials 2855 | -9/Mines | Learned 4 Materials zone layouts 2879 | -9/Mines | Entered Materials 2879 | -8/Materials | Evolved 4 slots: Propulsion x2, Utility x2 3056 | -8/Materials | Garrison activated, responded to threat 3549 | -8/Materials | Build established: Scavenger-Mutant 3593 | -8/Materials | Identified exit to Garrison 3593 | -8/Materials | Entered Garrison 3669 | -8/Garrison | Triggered checkpoint 3727 | -8/Garrison | Garrison Relay disabled 4032 | -8/Garrison | Triggered checkpoint 4467 | -8/Garrison | Discovered new exit (range 15) 4765 | -8/Garrison | Triggered checkpoint 4867 | -8/Garrison | Garrison Relay disabled 4910 | -8/Garrison | Discovered new exit (range 11) 4946 | -8/Garrison | Entered Factory 4946 | -7/Factory | Evolved 2 slots: Power x1, Propulsion x1 5896 | -7/Factory | Discovered new exit (range 12) 5914 | -7/Factory | Entered Lower Caves 5999 | -7/Lower Caves | Met a Warlord Commander 6000 | -7/Lower Caves | Learned location of Warlord (-4) 6001 | -7/Lower Caves | Warlord Commander delivered Encrypted Comm Array 6147 | -7/Lower Caves | Attracted the attention of an 0b10 checkpoint 6347 | -7/Lower Caves | Discovered new exit (range 9) 6407 | -7/Lower Caves | Entered another Lower Caves area 6415 | -7/Lower Caves | Discovered new exit (range 12) 6431 | -7/Lower Caves | Entered Factory 6431 | -6/Factory | Evolved 2 slots: Utility x2 6546 | -6/Factory | Released all parts (14) 6667 | -6/Factory | Discovered new exit (range 3) 6671 | -6/Factory | Identified exit to Lower Caves 6821 | -6/Factory | Identified exit to Factory 6890 | -6/Factory | Entered another Factory area 6890 | -5/Factory | Evolved 2 slots: Propulsion x1, Utility x1 6912 | -5/Factory | Identified exit to DSF 6912 | -5/Factory | Entered DSF 6926 | -5/DSF | Build established: Hacker-Mutant 6945 | -5/DSF | Discovered new exit (range 21) 6957 | -5/DSF | Additional patrols routed to DSF 6975 | -5/DSF | Identified exit to Factory 6975 | -5/DSF | Entered Factory 6975 | -4/Factory | Evolved 2 slots: Utility x2 7130 | -4/Factory | Spotted B-86 Titan 7230 | -4/Factory | Spotted B-86 Titan 7243 | -4/Factory | Lost 5 parts (1p3n1u) 7257 | -4/Factory | Discovered new exit (range 16) 7263 | -4/Factory | Identified exit to Research 7266 | -4/Factory | Entered Research 7266 | -3/Research | Evolved 2 slots: Utility x2 7281 | -3/Research | Discovered new exit (range 17) 7319 | -3/Research | Identified exit to Testing 7319 | -3/Research | Entered Testing 7320 | -3/Testing | Maximum security lockdown engaged 7352 | -3/Testing | Found Prototype Energy Cannon 7352 | -3/Testing | Identified Cld. Nova Cannon 7368 | -3/Testing | Spotted Striker 7368 | -3/Testing | Spotted Striker 7385 | -3/Testing | Found Prototype Energy Cannon 7385 | -3/Testing | Identified Hpw. Disruptor Cannon 7433 | -3/Testing | Spotted Superbehemoth 7452 | -3/Testing | Unstable Terrabomb Derivative detonated 7485 | -3/Testing | Build established: Mutant 7506 | -3/Testing | Found Prototype Hackware 7506 | -3/Testing | Identified Ghost Barrier 7548 | -3/Testing | Spotted Executioner 7548 | -3/Testing | Spotted Striker 7568 | -3/Testing | Core integrity fell below 50% 7590 | -3/Testing | Spotted PP-YXKC5D2LI9 7598 | -3/Testing | Lost 7 parts (7n) 7614 | -3/Testing | Core integrity fell below 20% 7614 | -3/Testing | Discovered new exit (range 11) 7617 | -3/Testing | Destroyed by X-77 Beamer with Gatling Laser Last Messages --------------- 07594_ Acquired Impulse Thruster. 07595_ Focalizer disabled. 07600_ Door malfunctions. 07600_ C-30 ARC bursts open, deploying its payload. 07600_ G-73 Enforcer unfolds itself. 07600_ L-61 Swordsman unfolds itself. 07600_ G-67 Veteran unfolds itself. 07600_ B-74 Champion unfolds itself. 07600_ E-15 Imp unfolds itself. 07605_ Imp. Terrain Scan Processor blown off. 07605_ Impulse Thruster blown off. 07605_ Ghost Barrier blown off. 07605_ E-15 Imp destroyed. 07613_ Enh. Optical Array destroyed. 07614_ EXIT=FOUND 07614_ Slug penetrates Containment Shield. 07615_ Hacking Suite destroyed. 07617_ Containment Shield disabled. 07617_ Door malfunctions. 07617_ Chain reaction triggered in Particle Reactor. Map ----- +----------------------------------------------------+ | | | | | ?????????????????????????????????????????????????? | | ?????????????????????????????????????????????????? | | ?????????????????????????????????????????????????? | | ?????????????????????????????????????????????????? | | ?????????????????????????????????????????????????? | | ?????????????????????????????????????????????????? | | ?????????????????????????????????????????????????? | | ?????????????????????????????????????????????????? | | ??????????????????????????? ?????????????????????? | | ?????????????????????????? #???????????????????? | | ?????????????????????????? #???????????????????? | | ?????????????????????????? #???????????????????? | | ?????????????????????????? #???????????????????? | | ?????????????????????????? #???????????????????? | | ?????????????????????????? #???????????????????? | | ?????????????????????????? #???????????????????? | | ???????????????????####### ##????#?????????????? | | ???????????????????# ##; #??""#?????????????? | | ???????????????????#xxx# ; #? "?????????????? | | ??????????########## #;; < # ???????????????? | | ?????????? YYYY / ?????????????????? | | ????????? #??????????????????? | | ????????? [[ #??????????????????? | | ?????????? [] @ #??????????????????? | | ?????????????????## #??????????????????? | | ??????????????????# ##?????????????????? | | ????????????####### g #???????????????? | | ????????????# # """" g#???????????????? | | ????????????# #!p """"" g #???????????????? | | ????????????# #! K""""" ####???????????????? | | ????????????# #! """"" #??????????????????? | | #???????????# # #??????????????????? | | ##?????????# # """"" #??????????????????? | | ########## # """"" #??????????????????? | | # * + p""""" +??????????????????? | | # # p""""" #??????????????????? | | #! wg # +??????????????????? | | # # #??????????????????? | | """ """ # ######### ###??????????????????? | | "" """ #+#############+###??????????????????? | | """ """ # # """"" #??????????????????? | | / # """"" #??????????????????? | | """ # # "" F"= """ #??????????????????? | | """ / / =%/ """ #??#########???????? | | """ "" # =! """ #?? ????????? | | """ # ! [ #? """ """ ""??????? | | """ S" ############### """ """ """?????? | | """ """ "#?# + """ """ """ "???? | +----------------------------------------------------+ Best States ------------- Heat Dissipation 51 Energy Generation 26 Energy Capacity 250 Matter Stores 300 Matter Capacity 300 Sight Range 22 Robot Scan Range 20 Terrain Scan Density 110 ECM Strength 1 Jamming Range 16 Power Amplification 20 Armor Coverage 225 Evasion (%) 63 Targeting Accuracy 5 Recoil Reduction 5 Offensive Hacking 20 Defensive Hacking 20 Item Schematics ----------------- None Robot Schematics ------------------ None Fabricated ------------ Nothing Repaired ---------- Nothing Alien Tech Used ----------------- None Achievements -------------- None Challenges ------------ None Game ------ Seed BlanketDeliveryWarhead Manual? 0 Play Time 01:14:51 Cumulative 179.1 hours Start 2025.05.31 @ 13:32:39 End 2025.05.31 @ 14:56:19 Sessions 1 Manual Loads 0 Difficulty Rogue Special Mode None Game No. 122 Rogue 122 Adventurer 0 Explorer 0 Win Type - Total 8 Types 6/0/1/1/0/0/0/0/0/0 Lore% 66 Gallery% 60 Achievement% 58 Wizard Run 0 Options --------- Layout 0 ASCII 1 Keyboard 1 Movement Numpad Keybinds 0 Fullscreen 1 Font 36/Proggy Map View 76x50 Zoom Use 0% Tactical HUD 1 Map Filters NONE Filters NONE Steam 1 RUN: 613eb607-e43f-455f-a189-6ade3f62e192